[Event "Titled Tuesday Blitz June 21 Early 2022"]
[White "Kucuksari, Kaan"]
[Black "Sethuraman, S.P."]
[WhiteFideId "6380166"]
[BlackFideId "5021596"]
[WhiteElo "2305"]
[BlackElo "2473"]
[Result "0-1"]
[Round "07"]
[TimeControl "180+1"]
[Date "2022.06.22"]
[WhiteClock "0:00:28"]
[BlackClock "0:01:39"]

1. d4 {[%clk 0:03:00]}  g6 {[%clk 0:03:00]} 2. c4 {[%clk 0:03:01]}  Bg7 {[%clk 0:03:00]} 3. Nf3 {[%clk 0:03:02]}  f5 {[%clk 0:03:00]} 4. g3 {[%clk 0:03:02]}  Nf6 {[%clk 0:03:01]} 5. Bg2 {[%clk 0:03:03]}  O-O {[%clk 0:03:01]} 6. O-O {[%clk 0:03:04]}  d6 {[%clk 0:03:02]} 7. Nc3 {[%clk 0:03:05]}  c6 {[%clk 0:03:02]} 8. Rb1 {[%clk 0:03:04]}  Ne4 {[%clk 0:03:01]} 9. Qc2 {[%clk 0:03:00]}  Nxc3 {[%clk 0:03:01]} 10. Qxc3 {[%clk 0:03:01]}  e5 {[%clk 0:02:52]} 11. dxe5 {[%clk 0:03:02]}  dxe5 {[%clk 0:02:52]} 12. Nxe5 {[%clk 0:03:03]}  Nd7 {[%clk 0:02:49]} 13. f4 {[%clk 0:02:50]}  Qe7 {[%clk 0:02:43]} 14. Kh1 {[%clk 0:02:48]}  Nxe5 {[%clk 0:02:38]} 15. fxe5 {[%clk 0:02:49]}  Bxe5 {[%clk 0:02:39]} 16. Bg5 {[%clk 0:02:47]}  Bxc3 {[%clk 0:02:34]} 17. Bxe7 {[%clk 0:02:46]}  Re8 {[%clk 0:02:35]} 18. Bd6 {[%clk 0:02:36]}  Be5 {[%clk 0:02:28]} 19. Rbd1 {[%clk 0:02:28]}  Bxb2 {[%clk 0:02:27]} 20. e4 {[%clk 0:02:20]}  fxe4 {[%clk 0:02:25]} 21. Bxe4 {[%clk 0:02:16]}  Rxe4 {[%clk 0:02:20]} 22. Rf8+ {[%clk 0:02:17]}  Kg7 {[%clk 0:02:20]} 23. Rdf1 {[%clk 0:02:00]}  Kh6 {[%clk 0:02:01]} 24. Bf4+ {[%clk 0:01:26]}  g5 {[%clk 0:01:54]} 25. Bd6 {[%clk 0:01:10]}  Bh3 {[%clk 0:01:53]} 26. Rxa8 {[%clk 0:00:39]}  Bxf1 {[%clk 0:01:52]} 27. Kg1 {[%clk 0:00:39]}  Bxc4 {[%clk 0:01:51]} 28. Kf2 {[%clk 0:00:36]}  Bd5 {[%clk 0:01:50]} 29. h3 {[%clk 0:00:32]}  Bd4+ {[%clk 0:01:49]} 30. Kf1 {[%clk 0:00:33]}  Kg6 {[%clk 0:01:44]} 31. Rf8 {[%clk 0:00:28]}  Bc4+ {[%clk 0:01:39]} 32. Kg2 {[%clk 0:00:28]}  Re2+ {[%clk 0:01:39]} 0-1


[Site "https://www.chess.com"]

[Event "Titled Tuesday Blitz June 21 Early 2022"]
[White "Lauridsen, Jesper Morch"]
[Black "Silvestre, Christian"]
[WhiteFideId "1401890"]
[BlackFideId "30956269"]
[WhiteElo "2222"]
[BlackElo "2437"]
[Result "1-0"]
[Round "07"]
[TimeControl "180+1"]
[Date "2022.06.22"]
[WhiteClock "0:01:01"]
[BlackClock "0:01:23"]

1. e4 {[%clk 0:03:00]}  c6 {[%clk 0:02:59]} 2. d4 {[%clk 0:03:00]}  d5 {[%clk 0:02:58]} 3. exd5 {[%clk 0:03:00]}  cxd5 {[%clk 0:02:58]} 4. c4 {[%clk 0:03:01]}  dxc4 {[%clk 0:02:54]} 5. Nc3 {[%clk 0:03:01]}  Nf6 {[%clk 0:02:49]} 6. Bxc4 {[%clk 0:03:01]}  e6 {[%clk 0:02:49]} 7. Nf3 {[%clk 0:02:59]}  g6 {[%clk 0:02:48]} 8. Bg5 {[%clk 0:02:57]}  Bg7 {[%clk 0:02:46]} 9. Qa4+ {[%clk 0:02:51]}  Bd7 {[%clk 0:02:42]} 10. Qa3 {[%clk 0:02:50]}  Bc6 {[%clk 0:02:33]} 11. d5 {[%clk 0:02:34]}  exd5 {[%clk 0:02:25]} 12. O-O-O {[%clk 0:02:32]}  Bf8 {[%clk 0:01:36]} 13. Rhe1+ {[%clk 0:02:24]}  Kd7 {[%clk 0:01:34]} 14. Qb3 {[%clk 0:01:17]}  Be7 {[%clk 0:01:28]} 15. Bxd5 {[%clk 0:01:08]}  Bxd5 {[%clk 0:01:23]} 16. Nxd5 {[%clk 0:01:01]} 1-0


[Site "https://www.chess.com"]

[Event "Titled Tuesday Blitz June 21 Early 2022"]
[White "Li, Zhuoling"]
[Black "Sadykov, Ramil"]
[WhiteFideId "8605629"]
[BlackFideId "24113590"]
[WhiteElo "2307"]
[BlackElo "2226"]
[Result "0-1"]
[Round "07"]
[TimeControl "180+1"]
[Date "2022.06.22"]
[WhiteClock "0:01:03"]
[BlackClock "0:01:50"]

1. e4 {[%clk 0:03:00]}  c5 {[%clk 0:02:54]} 2. Nf3 {[%clk 0:03:00]}  Nc6 {[%clk 0:02:52]} 3. Bb5 {[%clk 0:02:59]}  g6 {[%clk 0:02:52]} 4. O-O {[%clk 0:02:58]}  Bg7 {[%clk 0:02:51]} 5. Bxc6 {[%clk 0:02:58]}  dxc6 {[%clk 0:02:51]} 6. h3 {[%clk 0:02:58]}  Nh6 {[%clk 0:02:50]} 7. d3 {[%clk 0:02:56]}  f6 {[%clk 0:02:50]} 8. a4 {[%clk 0:02:50]}  a5 {[%clk 0:02:49]} 9. Be3 {[%clk 0:02:50]}  b6 {[%clk 0:02:49]} 10. Nbd2 {[%clk 0:02:45]}  O-O {[%clk 0:02:48]} 11. Nc4 {[%clk 0:02:37]}  Nf7 {[%clk 0:02:45]} 12. Qd2 {[%clk 0:02:32]}  e5 {[%clk 0:02:43]} 13. Nh2 {[%clk 0:02:25]}  Be6 {[%clk 0:02:32]} 14. b3 {[%clk 0:02:21]}  f5 {[%clk 0:02:21]} 15. f3 {[%clk 0:01:48]}  f4 {[%clk 0:02:16]} 16. Bf2 {[%clk 0:01:47]}  h5 {[%clk 0:02:16]} 17. Rad1 {[%clk 0:01:43]}  g5 {[%clk 0:02:13]} 18. c3 {[%clk 0:01:39]}  b5 {[%clk 0:02:12]} 19. axb5 {[%clk 0:01:23]}  cxb5 {[%clk 0:02:13]} 20. Nb2 {[%clk 0:01:21]}  Bxb3 {[%clk 0:02:13]} 21. Bxc5 {[%clk 0:01:20]}  Bxd1 {[%clk 0:02:04]} 22. Bxf8 {[%clk 0:01:19]}  Bxf8 {[%clk 0:01:58]} 23. Rxd1 {[%clk 0:01:18]}  a4 {[%clk 0:01:54]} 24. d4 {[%clk 0:01:16]}  a3 {[%clk 0:01:52]} 25. Nd3 {[%clk 0:01:14]}  exd4 {[%clk 0:01:53]} 26. cxd4 {[%clk 0:01:12]}  Qxd4+ {[%clk 0:01:54]} 27. Qf2 {[%clk 0:01:12]}  Qxf2+ {[%clk 0:01:50]} 28. Kxf2 {[%clk 0:01:10]}  a2 {[%clk 0:01:50]} 29. Ra1 {[%clk 0:01:03]}  Bg7 {[%clk 0:01:50]} 0-1


[Site "https://www.chess.com"]

[Event "Titled Tuesday Blitz June 21 Early 2022"]
[White "Luo, Terry"]
[Black "Sapunov, Evgeny"]
[WhiteFideId "30931045"]
[BlackFideId "4126661"]
[WhiteElo "2024"]
[BlackElo "2470"]
[Result "0-1"]
[Round "07"]
[TimeControl "180+1"]
[Date "2022.06.22"]
[WhiteClock "0:00:03"]
[BlackClock "0:00:13"]

1. d4 {[%clk 0:03:00]}  Nf6 {[%clk 0:02:57]} 2. c4 {[%clk 0:03:01]}  g6 {[%clk 0:02:57]} 3. Nc3 {[%clk 0:03:01]}  Bg7 {[%clk 0:02:57]} 4. e4 {[%clk 0:03:01]}  O-O {[%clk 0:02:57]} 5. Nf3 {[%clk 0:03:02]}  d6 {[%clk 0:02:58]} 6. Be2 {[%clk 0:03:03]}  e5 {[%clk 0:02:58]} 7. O-O {[%clk 0:03:03]}  Nc6 {[%clk 0:02:58]} 8. d5 {[%clk 0:03:04]}  Ne7 {[%clk 0:02:59]} 9. Ne1 {[%clk 0:03:05]}  Nd7 {[%clk 0:02:59]} 10. Be3 {[%clk 0:03:06]}  f5 {[%clk 0:02:59]} 11. f3 {[%clk 0:03:06]}  f4 {[%clk 0:02:59]} 12. Bf2 {[%clk 0:03:07]}  g5 {[%clk 0:03:00]} 13. Rc1 {[%clk 0:03:07]}  Ng6 {[%clk 0:02:59]} 14. c5 {[%clk 0:03:08]}  Nxc5 {[%clk 0:02:59]} 15. b4 {[%clk 0:03:09]}  Na6 {[%clk 0:03:00]} 16. Nb5 {[%clk 0:03:09]}  Bd7 {[%clk 0:03:00]} 17. Nxa7 {[%clk 0:03:07]}  Qb8 {[%clk 0:02:55]} 18. Nb5 {[%clk 0:03:04]}  Bxb5 {[%clk 0:02:52]} 19. Bxb5 {[%clk 0:03:05]}  Nxb4 {[%clk 0:02:53]} 20. a4 {[%clk 0:03:04]}  Rf7 {[%clk 0:02:43]} 21. Nd3 {[%clk 0:03:00]}  Na6 {[%clk 0:02:40]} 22. Qb3 {[%clk 0:02:57]}  h5 {[%clk 0:02:37]} 23. Rb1 {[%clk 0:02:48]}  g4 {[%clk 0:02:32]} 24. Nb4 {[%clk 0:01:32]}  Nxb4 {[%clk 0:02:21]} 25. Qxb4 {[%clk 0:01:33]}  Qd8 {[%clk 0:02:18]} 26. Be2 {[%clk 0:01:24]}  g3 {[%clk 0:02:13]} 27. Be1 {[%clk 0:01:24]}  gxh2+ {[%clk 0:02:07]} 28. Kh1 {[%clk 0:01:22]}  b6 {[%clk 0:02:07]} 29. Bb5 {[%clk 0:01:20]}  Bf6 {[%clk 0:02:05]} 30. Bc6 {[%clk 0:01:20]}  Ra7 {[%clk 0:02:02]} 31. Qb5 {[%clk 0:01:17]}  Bh4 {[%clk 0:01:56]} 32. a5 {[%clk 0:01:13]}  Bxe1 {[%clk 0:01:53]} 33. axb6 {[%clk 0:01:12]}  cxb6 {[%clk 0:01:51]} 34. Rfxe1 {[%clk 0:01:09]}  Nh4 {[%clk 0:01:46]} 35. Qxb6 {[%clk 0:01:08]}  Qxb6 {[%clk 0:01:45]} 36. Rxb6 {[%clk 0:01:08]}  Ra2 {[%clk 0:01:45]} 37. Rb8+ {[%clk 0:00:59]}  Kh7 {[%clk 0:01:43]} 38. Be8 {[%clk 0:00:51]}  Rg7 {[%clk 0:01:40]} 39. Bxh5 {[%clk 0:00:37]}  Rgxg2 {[%clk 0:01:27]} 40. Bg4 {[%clk 0:00:30]}  Rgb2 {[%clk 0:00:29]} 41. Rxb2 {[%clk 0:00:17]}  Rxb2 {[%clk 0:00:29]} 42. Rc1 {[%clk 0:00:17]}  Kh6 {[%clk 0:00:22]} 43. Rc6 {[%clk 0:00:17]}  Kg5 {[%clk 0:00:22]} 44. Rxd6 {[%clk 0:00:17]}  Ng2 {[%clk 0:00:21]} 45. Kxh2 {[%clk 0:00:16]}  Ne3+ {[%clk 0:00:19]} 46. Kg1 {[%clk 0:00:16]}  Kh4 {[%clk 0:00:20]} 47. Rc6 {[%clk 0:00:10]}  Kg3 {[%clk 0:00:17]} 48. Rc1 {[%clk 0:00:10]}  Rd2 {[%clk 0:00:16]} 49. Be6 {[%clk 0:00:08]}  Kxf3 {[%clk 0:00:15]} 50. Rc8 {[%clk 0:00:05]}  Kxe4 {[%clk 0:00:13]} 51. Rg8 {[%clk 0:00:03]}  f3 {[%clk 0:00:13]} 0-1


[Site "https://www.chess.com"]

[Event "Titled Tuesday Blitz June 21 Early 2022"]
[White "Martin Carmona, Gaston Manuel"]
[Black "Estrada Nieto, Julian"]
[WhiteFideId "22284567"]
[BlackFideId "5101018"]
[WhiteElo "2162"]
[BlackElo "2252"]
[Result "0-1"]
[Round "07"]
[TimeControl "180+1"]
[Date "2022.06.22"]
[WhiteClock "0:00:12"]
[BlackClock "0:00:20"]

1. d4 {[%clk 0:03:00]}  d5 {[%clk 0:03:00]} 2. c4 {[%clk 0:02:59]}  dxc4 {[%clk 0:03:01]} 3. Nf3 {[%clk 0:02:53]}  Nf6 {[%clk 0:03:01]} 4. e3 {[%clk 0:02:49]}  e6 {[%clk 0:03:01]} 5. Bxc4 {[%clk 0:02:48]}  a6 {[%clk 0:03:01]} 6. O-O {[%clk 0:02:47]}  c5 {[%clk 0:03:00]} 7. e4 {[%clk 0:02:27]}  cxd4 {[%clk 0:02:51]} 8. e5 {[%clk 0:02:14]}  Nd5 {[%clk 0:02:51]} 9. Qxd4 {[%clk 0:02:11]}  Nc6 {[%clk 0:02:51]} 10. Qg4 {[%clk 0:02:12]}  h5 {[%clk 0:02:37]} 11. Qg3 {[%clk 0:02:10]}  h4 {[%clk 0:02:37]} 12. Qg4 {[%clk 0:02:07]}  h3 {[%clk 0:02:36]} 13. gxh3 {[%clk 0:02:06]}  b5 {[%clk 0:02:27]} 14. Bb3 {[%clk 0:02:04]}  Qc7 {[%clk 0:02:11]} 15. Nbd2 {[%clk 0:02:00]}  Nxe5 {[%clk 0:02:03]} 16. Nxe5 {[%clk 0:01:58]}  Qxe5 {[%clk 0:02:04]} 17. Nf3 {[%clk 0:01:59]}  Qh5 {[%clk 0:01:58]} 18. Re1 {[%clk 0:01:32]}  Qxg4+ {[%clk 0:01:37]} 19. hxg4 {[%clk 0:01:33]}  Bb7 {[%clk 0:01:37]} 20. Ne5 {[%clk 0:01:29]}  Bd6 {[%clk 0:01:36]} 21. Bd2 {[%clk 0:01:25]}  Rc8 {[%clk 0:01:33]} 22. a4 {[%clk 0:01:03]}  f6 {[%clk 0:01:22]} 23. Nf3 {[%clk 0:00:46]}  Kf7 {[%clk 0:01:07]} 24. axb5 {[%clk 0:00:45]}  axb5 {[%clk 0:01:07]} 25. Ra7 {[%clk 0:00:45]}  Rc7 {[%clk 0:01:05]} 26. Nd4 {[%clk 0:00:38]}  Bxh2+ {[%clk 0:00:58]} 27. Kf1 {[%clk 0:00:38]}  Be5 {[%clk 0:00:56]} 28. Nxb5 {[%clk 0:00:30]}  Re7 {[%clk 0:00:36]} 29. Kg1 {[%clk 0:00:19]}  Nf4 {[%clk 0:00:22]} 30. Rxe5 {[%clk 0:00:12]}  Rh1# {[%clk 0:00:20]} 0-1


[Site "https://www.chess.com"]

[Event "Titled Tuesday Blitz June 21 Early 2022"]
[White "Martin, Lewis"]
[Black "Yaksin, Oleg"]
[WhiteFideId "410551"]
[BlackFideId "24105880"]
[WhiteElo "2145"]
[BlackElo "2256"]
[Result "0-1"]
[Round "07"]
[TimeControl "180+1"]
[Date "2022.06.22"]
[WhiteClock "0:00:10"]
[BlackClock "0:00:19"]

1. e4 {[%clk 0:02:58]}  c5 {[%clk 0:03:00]} 2. Nf3 {[%clk 0:02:58]}  d6 {[%clk 0:03:00]} 3. d4 {[%clk 0:02:59]}  cxd4 {[%clk 0:03:01]} 4. Nxd4 {[%clk 0:02:59]}  Nf6 {[%clk 0:03:01]} 5. Nc3 {[%clk 0:03:00]}  Nc6 {[%clk 0:03:02]} 6. Bg5 {[%clk 0:02:59]}  e6 {[%clk 0:03:02]} 7. Qd2 {[%clk 0:02:59]}  Be7 {[%clk 0:03:03]} 8. f4 {[%clk 0:02:57]}  Qb6 {[%clk 0:03:03]} 9. O-O-O {[%clk 0:02:52]}  Nxd4 {[%clk 0:03:03]} 10. Qxd4 {[%clk 0:02:52]}  Qxd4 {[%clk 0:03:03]} 11. Rxd4 {[%clk 0:02:52]}  a6 {[%clk 0:03:04]} 12. h3 {[%clk 0:02:42]}  Bd7 {[%clk 0:03:04]} 13. g4 {[%clk 0:02:42]}  Bc6 {[%clk 0:03:04]} 14. Bg2 {[%clk 0:02:41]}  h6 {[%clk 0:02:21]} 15. Bh4 {[%clk 0:02:38]}  e5 {[%clk 0:01:49]} 16. fxe5 {[%clk 0:02:25]}  dxe5 {[%clk 0:01:49]} 17. Rd3 {[%clk 0:02:23]}  Nd7 {[%clk 0:01:36]} 18. Bxe7 {[%clk 0:02:16]}  Kxe7 {[%clk 0:01:36]} 19. Nd5+ {[%clk 0:02:13]}  Bxd5 {[%clk 0:01:36]} 20. exd5 {[%clk 0:02:13]}  Kd6 {[%clk 0:01:36]} 21. c4 {[%clk 0:02:04]}  Rhc8 {[%clk 0:01:31]} 22. Rc3 {[%clk 0:02:03]}  b5 {[%clk 0:01:29]} 23. b3 {[%clk 0:02:02]}  bxc4 {[%clk 0:01:17]} 24. bxc4 {[%clk 0:02:02]}  Nb6 {[%clk 0:01:08]} 25. Kc2 {[%clk 0:01:24]}  Rxc4 {[%clk 0:01:04]} 26. Rxc4 {[%clk 0:01:15]}  Nxc4 {[%clk 0:01:05]} 27. Rc1 {[%clk 0:01:09]}  Rc8 {[%clk 0:01:01]} 28. Kb1 {[%clk 0:00:55]}  Rc5 {[%clk 0:00:40]} 29. a4 {[%clk 0:00:43]}  Ne3 {[%clk 0:00:36]} 30. Rxc5 {[%clk 0:00:41]}  Kxc5 {[%clk 0:00:37]} 31. Be4 {[%clk 0:00:39]}  Nxd5 {[%clk 0:00:37]} 32. Kc2 {[%clk 0:00:39]}  Kd4 {[%clk 0:00:28]} 33. Bh7 {[%clk 0:00:27]}  a5 {[%clk 0:00:27]} 34. Kd2 {[%clk 0:00:21]}  Nf4 {[%clk 0:00:24]} 35. h4 {[%clk 0:00:20]}  f6 {[%clk 0:00:20]} 36. Bc2 {[%clk 0:00:18]}  e4 {[%clk 0:00:20]} 37. Ke1 {[%clk 0:00:17]}  e3 {[%clk 0:00:21]} 38. Bd1 {[%clk 0:00:14]}  Ng2+ {[%clk 0:00:20]} 39. Kf1 {[%clk 0:00:13]}  Nxh4 {[%clk 0:00:21]} 40. Ke2 {[%clk 0:00:13]}  Ng6 {[%clk 0:00:20]} 41. Kf3 {[%clk 0:00:13]}  Ne5+ {[%clk 0:00:21]} 42. Kf4 {[%clk 0:00:12]}  Nd3+ {[%clk 0:00:22]} 43. Kf3 {[%clk 0:00:12]}  g5 {[%clk 0:00:19]} 44. Bc2 {[%clk 0:00:10]}  Ne1+ {[%clk 0:00:19]} 0-1


[Site "https://www.chess.com"]

[Event "Titled Tuesday Blitz June 21 Early 2022"]
[White "Martinez Alcantara, Jose Eduardo"]
[Black "Rohith Krishna S"]
[WhiteFideId "3805662"]
[BlackFideId "46617051"]
[WhiteElo "2703"]
[BlackElo "2117"]
[Result "1-0"]
[Round "07"]
[TimeControl "180+1"]
[Date "2022.06.21"]
[WhiteClock "0:00:10"]
[BlackClock "0:00:26"]

1. e4 {[%clk 0:03:00]}  e5 {[%clk 0:02:59]} 2. Nf3 {[%clk 0:03:01]}  Nc6 {[%clk 0:02:59]} 3. Bb5 {[%clk 0:03:02]}  Nf6 {[%clk 0:02:57]} 4. d3 {[%clk 0:03:02]}  Bc5 {[%clk 0:02:57]} 5. O-O {[%clk 0:03:02]}  d6 {[%clk 0:02:56]} 6. c3 {[%clk 0:03:01]}  a6 {[%clk 0:02:55]} 7. Bxc6+ {[%clk 0:02:59]}  bxc6 {[%clk 0:02:56]} 8. d4 {[%clk 0:03:00]}  exd4 {[%clk 0:02:56]} 9. cxd4 {[%clk 0:03:01]}  Ba7 {[%clk 0:02:56]} 10. Qc2 {[%clk 0:03:02]}  O-O {[%clk 0:02:54]} 11. Qxc6 {[%clk 0:02:55]}  Rb8 {[%clk 0:02:53]} 12. Qc2 {[%clk 0:02:55]}  Re8 {[%clk 0:02:51]} 13. Bg5 {[%clk 0:02:48]}  h6 {[%clk 0:02:51]} 14. Bxf6 {[%clk 0:02:45]}  Qxf6 {[%clk 0:02:51]} 15. Qxc7 {[%clk 0:02:41]}  Rb7 {[%clk 0:02:38]} 16. Qc6 {[%clk 0:02:40]}  Rbe7 {[%clk 0:02:36]} 17. Nc3 {[%clk 0:02:35]}  Bg4 {[%clk 0:02:32]} 18. Nd5 {[%clk 0:02:27]}  Qg6 {[%clk 0:02:27]} 19. Nxe7+ {[%clk 0:02:23]}  Rxe7 {[%clk 0:02:28]} 20. Qc3 {[%clk 0:02:15]}  Rxe4 {[%clk 0:02:25]} 21. Rfe1 {[%clk 0:01:54]}  Rf4 {[%clk 0:02:23]} 22. Re8+ {[%clk 0:01:26]}  Kh7 {[%clk 0:02:23]} 23. Re3 {[%clk 0:01:25]}  Bb6 {[%clk 0:01:51]} 24. Kh1 {[%clk 0:01:13]}  Bf5 {[%clk 0:01:43]} 25. g3 {[%clk 0:01:00]}  Rg4 {[%clk 0:01:42]} 26. Rae1 {[%clk 0:00:43]}  Qh5 {[%clk 0:01:36]} 27. Kg1 {[%clk 0:00:41]}  Bg6 {[%clk 0:01:25]} 28. b4 {[%clk 0:00:40]}  Qh3 {[%clk 0:01:21]} 29. Qc4 {[%clk 0:00:31]}  Bd8 {[%clk 0:01:00]} 30. Qxa6 {[%clk 0:00:29]}  d5 {[%clk 0:00:54]} 31. Ne5 {[%clk 0:00:19]}  Be4 {[%clk 0:00:53]} 32. Rxe4 {[%clk 0:00:19]}  Rxe4 {[%clk 0:00:54]} 33. Rxe4 {[%clk 0:00:20]}  dxe4 {[%clk 0:00:55]} 34. Qa8 {[%clk 0:00:18]}  Qf5 {[%clk 0:00:45]} 35. Qxd8 {[%clk 0:00:08]}  e3 {[%clk 0:00:45]} 36. fxe3 {[%clk 0:00:08]}  Qb1+ {[%clk 0:00:46]} 37. Kg2 {[%clk 0:00:08]}  Qc2+ {[%clk 0:00:46]} 38. Kf1 {[%clk 0:00:04]}  Qd1+ {[%clk 0:00:43]} 39. Kf2 {[%clk 0:00:05]}  Qc2+ {[%clk 0:00:42]} 40. Kf3 {[%clk 0:00:04]}  Qf5+ {[%clk 0:00:42]} 41. Kg2 {[%clk 0:00:05]}  Qc2+ {[%clk 0:00:42]} 42. Kh3 {[%clk 0:00:05]}  Qf5+ {[%clk 0:00:43]} 43. g4 {[%clk 0:00:06]}  Qf1+ {[%clk 0:00:41]} 44. Kg3 {[%clk 0:00:07]}  Qg1+ {[%clk 0:00:38]} 45. Kf3 {[%clk 0:00:06]}  Qf1+ {[%clk 0:00:37]} 46. Ke4 {[%clk 0:00:06]}  Qh1+ {[%clk 0:00:36]} 47. Kd3 {[%clk 0:00:04]}  Qf1+ {[%clk 0:00:36]} 48. Kc2 {[%clk 0:00:03]}  Qe2+ {[%clk 0:00:36]} 49. Kc3 {[%clk 0:00:04]}  Qxe3+ {[%clk 0:00:34]} 50. Nd3 {[%clk 0:00:04]}  Qg1 {[%clk 0:00:31]} 51. Qa5 {[%clk 0:00:03]}  Qxh2 {[%clk 0:00:31]} 52. Qf5+ {[%clk 0:00:03]}  Kg8 {[%clk 0:00:30]} 53. Qc8+ {[%clk 0:00:03]}  Kh7 {[%clk 0:00:30]} 54. Qf5+ {[%clk 0:00:04]}  Kg8 {[%clk 0:00:30]} 55. Qe5 {[%clk 0:00:04]}  Qh1 {[%clk 0:00:29]} 56. Qe8+ {[%clk 0:00:04]}  Kh7 {[%clk 0:00:29]} 57. Qe1 {[%clk 0:00:05]}  Qc6+ {[%clk 0:00:28]} 58. Kd2 {[%clk 0:00:06]}  Qa4 {[%clk 0:00:28]} 59. Qe4+ {[%clk 0:00:06]}  g6 {[%clk 0:00:27]} 60. Qd5 {[%clk 0:00:05]}  Kg7 {[%clk 0:00:27]} 61. Qb3 {[%clk 0:00:04]}  Qc6 {[%clk 0:00:26]} 62. b5 {[%clk 0:00:05]}  Qg2+ {[%clk 0:00:26]} 63. Kc3 {[%clk 0:00:05]}  Qxg4 {[%clk 0:00:26]} 64. b6 {[%clk 0:00:06]}  Qc8+ {[%clk 0:00:26]} 65. Nc5 {[%clk 0:00:07]}  Qh3+ {[%clk 0:00:26]} 66. Kc4 {[%clk 0:00:07]}  Qf1+ {[%clk 0:00:25]} 67. Kd5 {[%clk 0:00:05]}  Qh1+ {[%clk 0:00:24]} 68. Kd6 {[%clk 0:00:06]}  Qh2+ {[%clk 0:00:24]} 69. Kd7 {[%clk 0:00:06]}  Qf2 {[%clk 0:00:24]} 70. Qd5 {[%clk 0:00:04]}  h5 {[%clk 0:00:19]} 71. b7 {[%clk 0:00:04]}  Qb2 {[%clk 0:00:20]} 72. Qe5+ {[%clk 0:00:04]}  Kh6 {[%clk 0:00:20]} 73. Qf4+ {[%clk 0:00:03]}  g5 {[%clk 0:00:20]} 74. Qd6+ {[%clk 0:00:03]}  Kh7 {[%clk 0:00:20]} 75. b8=Q {[%clk 0:00:04]}  Qxb8 {[%clk 0:00:20]} 76. Qxb8 {[%clk 0:00:05]}  h4 {[%clk 0:00:21]} 77. a4 {[%clk 0:00:05]}  Kg6 {[%clk 0:00:22]} 78. Qb7 {[%clk 0:00:06]}  Kh5 {[%clk 0:00:23]} 79. a5 {[%clk 0:00:07]}  Kg4 {[%clk 0:00:23]} 80. a6 {[%clk 0:00:08]}  f5 {[%clk 0:00:24]} 81. a7 {[%clk 0:00:08]}  f4 {[%clk 0:00:25]} 82. a8=Q {[%clk 0:00:09]}  Kg3 {[%clk 0:00:26]} 83. Qg2# {[%clk 0:00:10]} 1-0


[Site "https://www.chess.com"]

[Event "Titled Tuesday Blitz June 21 Early 2022"]
[White "Matinian, Nikita"]
[Black "Alinasab, Mobina"]
[WhiteFideId "24129100"]
[BlackFideId "12528897"]
[WhiteElo "2422"]
[BlackElo "2031"]
[Result "1/2-1/2"]
[Round "07"]
[TimeControl "180+1"]
[Date "2022.06.21"]
[WhiteClock "0:00:07"]
[BlackClock "0:00:08"]

1. e4 {[%clk 0:03:00]}  c5 {[%clk 0:02:59]} 2. Nc3 {[%clk 0:03:00]}  e6 {[%clk 0:02:58]} 3. g3 {[%clk 0:02:59]}  d5 {[%clk 0:02:57]} 4. exd5 {[%clk 0:02:59]}  exd5 {[%clk 0:02:58]} 5. Bg2 {[%clk 0:02:59]}  Nf6 {[%clk 0:02:55]} 6. d4 {[%clk 0:02:52]}  h6 {[%clk 0:02:50]} 7. Nge2 {[%clk 0:02:52]}  cxd4 {[%clk 0:02:35]} 8. Nxd4 {[%clk 0:02:50]}  Bb4 {[%clk 0:02:33]} 9. O-O {[%clk 0:02:49]}  Bxc3 {[%clk 0:02:32]} 10. bxc3 {[%clk 0:02:47]}  O-O {[%clk 0:02:33]} 11. Rb1 {[%clk 0:02:43]}  Nc6 {[%clk 0:02:32]} 12. Ba3 {[%clk 0:02:37]}  Re8 {[%clk 0:02:21]} 13. Nxc6 {[%clk 0:02:29]}  bxc6 {[%clk 0:02:21]} 14. h3 {[%clk 0:02:28]}  Ba6 {[%clk 0:02:19]} 15. Re1 {[%clk 0:02:28]}  Bc4 {[%clk 0:01:59]} 16. Rb7 {[%clk 0:02:19]}  Ne4 {[%clk 0:01:36]} 17. Bxe4 {[%clk 0:01:49]}  Rxe4 {[%clk 0:01:33]} 18. Rxe4 {[%clk 0:01:48]}  dxe4 {[%clk 0:01:33]} 19. Qd4 {[%clk 0:01:47]}  Qxd4 {[%clk 0:01:27]} 20. cxd4 {[%clk 0:01:47]}  Bxa2 {[%clk 0:01:28]} 21. Kf1 {[%clk 0:01:47]}  a5 {[%clk 0:01:25]} 22. Ke2 {[%clk 0:01:46]}  a4 {[%clk 0:01:25]} 23. Ke3 {[%clk 0:01:41]}  Bd5 {[%clk 0:01:25]} 24. Rc7 {[%clk 0:01:37]}  Ra6 {[%clk 0:01:16]} 25. h4 {[%clk 0:01:34]}  h5 {[%clk 0:01:15]} 26. Kf4 {[%clk 0:01:34]}  Kh7 {[%clk 0:01:04]} 27. Kg5 {[%clk 0:01:34]}  Rb6 {[%clk 0:00:57]} 28. Ra7 {[%clk 0:01:29]}  Rb1 {[%clk 0:00:56]} 29. Rxa4 {[%clk 0:01:20]}  Rf1 {[%clk 0:00:30]} 30. c4 {[%clk 0:01:20]}  Be6 {[%clk 0:00:28]} 31. d5 {[%clk 0:01:13]}  cxd5 {[%clk 0:00:26]} 32. cxd5 {[%clk 0:01:14]}  Bxd5 {[%clk 0:00:26]} 33. Bc5 {[%clk 0:01:14]}  f6+ {[%clk 0:00:15]} 34. Kf4 {[%clk 0:01:03]}  Kg6 {[%clk 0:00:13]} 35. Ra7 {[%clk 0:01:02]}  Rc1 {[%clk 0:00:11]} 36. Bf8 {[%clk 0:01:02]}  Bf7 {[%clk 0:00:11]} 37. Kxe4 {[%clk 0:00:59]}  Rc2 {[%clk 0:00:11]} 38. f3 {[%clk 0:00:58]}  Rc8 {[%clk 0:00:11]} 39. Be7 {[%clk 0:00:56]}  Rc4+ {[%clk 0:00:10]} 40. Ke3 {[%clk 0:00:55]}  Rc3+ {[%clk 0:00:10]} 41. Ke4 {[%clk 0:00:54]}  Rc4+ {[%clk 0:00:10]} 42. Kd3 {[%clk 0:00:55]}  Rc6 {[%clk 0:00:09]} 43. Ra5 {[%clk 0:00:51]}  Rc7 {[%clk 0:00:09]} 44. Bf8 {[%clk 0:00:46]}  Be6 {[%clk 0:00:07]} 45. Ke3 {[%clk 0:00:41]}  Rc3+ {[%clk 0:00:07]} 46. Ke2 {[%clk 0:00:40]}  Rc7 {[%clk 0:00:07]} 47. Bc5 {[%clk 0:00:40]}  Bc4+ {[%clk 0:00:07]} 48. Ke3 {[%clk 0:00:40]}  Be6 {[%clk 0:00:07]} 49. Kf4 {[%clk 0:00:39]}  Rd7 {[%clk 0:00:06]} 50. g4 {[%clk 0:00:32]}  hxg4 {[%clk 0:00:06]} 51. fxg4 {[%clk 0:00:32]}  Rd5 {[%clk 0:00:06]} 52. h5+ {[%clk 0:00:33]}  Kh7 {[%clk 0:00:06]} 53. Ke4 {[%clk 0:00:31]}  Bf7 {[%clk 0:00:07]} 54. Rb5 {[%clk 0:00:20]}  Re5+ {[%clk 0:00:06]} 55. Kf4 {[%clk 0:00:19]}  Rd5 {[%clk 0:00:07]} 56. Ra5 {[%clk 0:00:19]}  Be6 {[%clk 0:00:07]} 57. Bb6 {[%clk 0:00:10]}  Rxa5 {[%clk 0:00:06]} 58. Bxa5 {[%clk 0:00:10]}  Kh6 {[%clk 0:00:06]} 59. Bd2 {[%clk 0:00:09]}  Bf7 {[%clk 0:00:06]} 60. Kf5+ {[%clk 0:00:08]}  Kh7 {[%clk 0:00:07]} 61. Bb4 {[%clk 0:00:08]}  Be8 {[%clk 0:00:07]} 62. Kf4 {[%clk 0:00:07]}  Bd7 {[%clk 0:00:07]} 63. g5 {[%clk 0:00:07]}  fxg5+ {[%clk 0:00:07]} 64. Kxg5 {[%clk 0:00:08]}  Be8 {[%clk 0:00:07]} 65. Bf8 {[%clk 0:00:07]}  Bxh5 {[%clk 0:00:07]} 66. Kxh5 {[%clk 0:00:07]}  Kg8 {[%clk 0:00:08]} 67. Bxg7 {[%clk 0:00:07]} 1/2-1/2


[Site "https://www.chess.com"]